Cogmind - Beta 13 @@@ ROGUE MODE // 2024.04.20 @ 21:36:58 Player: FlyingLemon Result: Destroyed by G-73 Enforcer with Phase Gun Performance ------------- Evolutions (8) 4000 Regions Visited (10) 2000 Robots Destroyed (43) 215 Value Destroyed (1438) 1438 Prototype IDs (4) 80 Alien Tech Used (0) 0 Bonus (606) 606 TOTAL SCORE: 8339 Bonus ------- High Alert Combat Kills 42 Follower Combat Kills 64 Entered DSFs 500 Cogmind --------- Core Integrity 0/1450 Matter 191/300 Energy 99/100 System Corruption 4% Temperature Cool (0) Movement Core (50) Location -2/Research Parts ------- > --- POWER (3) -------- (None) > --- PROPULSION (9) --- (None) > --- UTILITY (9) ------ (None) > --- WEAPON (2) ------- (None) > --- INVENTORY (5) ---- Quantum Reactor Improved System Shield Advanced Remote Datajack Peak State ------------ > --- POWER ------------ Micro Antimatter Reactor Quantum Reactor Light Quantum Reactor > --- PROPULSION ------- Improved Flight Unit Improved Flight Unit Field Propulsion Array Field Propulsion Array Q-thruster Impulse Thruster Array > --- UTILITY ---------- Advanced Coolant Injector Small Storage Unit Advanced Visual Processing Unit Improved Sensor Array Advanced Signal Interpreter Advanced ECM Suite Improved Remote Force Field Hacking Suite Hacking Suite > --- WEAPON ----------- Enhanced Quantum Rifle Heavy Mace > --- INVENTORY -------- Micro Antimatter Reactor Armored Huge Wheel Improved Flight Unit Advanced Trap Scanner Improved System Shield Heavy Rocket Launcher Improved Remote Datajack [Rating: 137] Favorites ----------- Power Light Nuclear Core Engine Improved Ion Engine Power Core Light Nuclear Core Reactor Micro Antimatter Reactor Propulsion Improved Flight Unit Treads Light Treads Flight Unit Improved Flight Unit Utility Large Storage Unit Device Structural Scanner Storage Large Storage Unit Processor Advanced Visual Processing Unit Hackware Hacking Suite Protection Improved Propulsion Shielding Weapon Medium Laser Energy Gun Medium Laser Energy Cannon Ion Cannon Ballistic Gun Light Assault Rifle Launcher Heavy Rocket Launcher Special Weapon Improved Remote Datajack Impact Weapon Heavy Mace Special Melee Weapon Improved Datajack Build | -11 -10 -9 -8 -7 -6 -5 -5 -4 -3 -2 ------- Run | Yrd Mat Mat Mat Fac Fac Fac DSF Fac Res Res Slots Evolved 16 | . . 2 2 2 2 2 . 2 2 2 Power 2 | . . . . . 1 . . . 1 . Propulsion 7 | . . . 1 2 1 1 . 1 . 1 Utility 7 | . . 2 1 . . 1 . 1 1 1 Weapon . | . . . . . . . . . . . Parts Attached 103 | 6 7 19 22 4 5 3 1 2 12 22 Power 19 | 1 1 4 3 . 2 . . . 3 5 Engine 9 | 1 1 4 1 . 2 . . . . . Core 2 | . . . 2 . . . . . . . Reactor 8 | . . . . . . . . . 3 5 Propulsion 31 | 2 . 6 8 2 2 1 . 1 4 5 Treads 10 | 2 . 6 2 . . . . . . . Leg . | . . . . . . . . . . . Wheel . | . . . . . . . . . . . Hover . | . . . . . . . . . . . Flight 21 | . . . 6 2 2 1 . 1 4 5 Utility 32 | 1 4 5 5 1 . 2 . 1 4 9 Device 13 | . . 2 1 . . . . 1 2 7 Storage 5 | 1 2 1 1 . . . . . . . Processor 7 | . 2 2 1 1 . 1 . . . . Hackware 3 | . . . 1 . . 1 . . . 1 Protection 4 | . . . 1 . . . . . 2 1 Artifact . | . . . . . . . . . . . Weapon 21 | 2 2 4 6 1 1 . 1 . 1 3 Energy Gun 7 | 2 1 . 2 . . . . . . 2 Energy Cannon 2 | . . 1 1 . . . . . . . Ballistic Gun 5 | . 1 3 1 . . . . . . . Ballistic Cannon . | . . . . . . . . . . . Launcher 1 | . . . . . . . . . . 1 Special Weapon 1 | . . . . . . . . . 1 . Impact Weapon 4 | . . . 2 . 1 . 1 . . . Slashing Weapon . | . . . . . . . . . . . Piercing Weapon . | . . . . . . . . . . . Special Melee Weapon 1 | . . . . 1 . . . . . . Unidentified Prototypes 2 | . . . 1 . . . . . . 1 Parts Lost 33 | . . 1 10 . 1 . . . 1 20 Power 5 | . . . 2 . . . . . 1 2 Propulsion 13 | . . . 4 . 1 . . . . 8 Utility 11 | . . 1 2 . . . . . . 8 Weapon 4 | . . . 2 . . . . . . 2 Highest Loss Streak 18 | . . 1 7 . 1 . . . 1 18 To Critical Strikes . | . . . . . . . . . . . Average Slot Usage (%) 88 | . 97 95 80 92 92 91 94 92 89 64 Engine 7 | . 14 11 4 . 4 5 5 5 1 . Core 1 | . . . 1 7 6 5 5 5 3 . Reactor 1 | . . . . . . . . . 6 9 Treads 13 | . 28 22 15 . . . . . . . Flight 12 | . . . 3 38 38 41 41 42 34 21 Device 8 | . . 16 5 7 6 5 5 8 12 11 Storage 9 | . 17 11 9 7 6 5 5 5 4 3 Processor 12 | . 7 12 23 14 13 11 11 10 9 6 Hackware 2 | . . . 1 7 6 8 11 10 9 5 Energy Gun 5 | . 24 . 5 . . . . . . . Ballistic Gun 6 | . 3 19 4 . . . . . . . Impact Weapon 2 | . . . 1 7 6 5 5 5 4 3 Naked Turns 15 | . . . . . . . . . . 15 Heaviest Build 64 | 14 31 37 40 15 28 24 24 25 37 64 Greatest Support 67 | 40 40 44 66 24 28 31 31 35 56 67 Greatest Overweight (x) 9 | . . . 9 . . . . . . . Average Overweight (x) . | . . . . . . . . . . . Largest Inventory Capacity 15 | 8 15 15 15 8 8 8 8 8 8 8 Average Capacity 11 | 7 13 15 14 8 8 8 8 8 8 7 Most Carried 15 | 6 15 15 15 8 8 6 8 8 8 8 Average Carried 10 | 3 10 14 13 7 7 5 7 7 7 6 Final Capacity 15 | 8 15 15 8 8 8 8 8 8 8 5 Final Carried 15 | 6 14 15 8 8 7 5 7 8 8 3 Class Distribution -------------------- 43% | Mutant 13% | Scavenger-Mutant 12% | Scavenger-Sprinter 8% | Hacker-Sprinter 8% | Scavenger-Skirmisher 4% | Infiltrator-Ninja 4% | Sprinter 3% | Skirmisher Dominant Class ---------------- Mutant | -10/Materials Scavenger-Mutant | -9/Materials Mutant | -8/Materials Sprinter | -7/Factory Scavenger-Sprinter | -6/Factory Scavenger-Sprinter | -5/Factory Scavenger-Sprinter | -5/DSF Scavenger-Sprinter | -4/Factory Hacker-Sprinter | -3/Research Infiltrator-Ninja | -2/Research Resources | -11 -10 -9 -8 -7 -6 -5 -5 -4 -3 -2 ----------- Run | Yrd Mat Mat Mat Fac Fac Fac DSF Fac Res Res Matter Collected 1155 | 184 149 215 273 . . . . . 152 182 Remotely . | . . . . . . . . . . . Salvage Created 1478 | . 291 419 662 . . . . . . 106 Parts 95 | . 24 35 27 . . . . . . 9 Haulers Intercepted . | . . . . . . . . . . . Recyclers Shooed 1 | . . . . . . . . . . 1 Parts Field Recycled . | . . . . . . . . . . . Retrieved Matter . | . . . . . . . . . . . Parts Self-Destructed . | . . . . . . . . . . . Prevented . | . . . . . . . . . . . Kills | -11 -10 -9 -8 -7 -6 -5 -5 -4 -3 -2 ------- Run | Yrd Mat Mat Mat Fac Fac Fac DSF Fac Res Res Combat Hostiles Destroyed 37 | . 10 10 14 . . . . . . 3 Melee 2 | . . . 2 . . . . . . . Guns 30 | . 10 10 9 . . . . . . 1 Cannons 1 | . . . 1 . . . . . . . AOE 2 | . . . . . . . . . . 2 Classes Destroyed 8 | . 3 1 1 . . . . . . 3 Worker 2 | . . . . . . . . . . 2 Builder 1 | . . . . . . . . . . 1 Operator 1 | . . . 1 . . . . . . . Watcher 2 | . 2 . . . . . . . . . Swarmer 9 | . 6 3 . . . . . . . . Cutter 3 | . . . . . . . . . . 3 Grunt 18 | . 4 1 13 . . . . . . . Sentry 7 | . . 6 1 . . . . . . . Best Kill Streak 5 | . 5 3 4 . . . . . . 4 Combat Bots Only 5 | . 5 3 4 . . . . . . 2 Max Kills in Single Turn 3 | . 1 1 1 . . . . . . 3 Gunslinging . | . . . . . . . . . . . Exploded 1 | . . . . . . . . . . 1 Melee 1 | . . . 1 . . . . . . . Uniques/NPCs Destroyed . | . . . . . . . . . . . Combat | -11 -10 -9 -8 -7 -6 -5 -5 -4 -3 -2 -------- Run | Yrd Mat Mat Mat Fac Fac Fac DSF Fac Res Res Hostile Shots Fired 512 | . 37 71 154 . 25 . 3 4 36 182 Missed 187 | . 10 17 42 . 16 . 3 4 24 71 Damage Taken 6211 | . 286 586 1787 . 163 . . . 209 3180 Core 1968 | . 19 78 347 . 21 . . . 50 1453 Absorbed by Shields 135 | . . . . . 59 . . . 76 . Redirected to Shielding 147 | . . . . . . . . . . 147 Regen/Repaired (Parts) 74 | . . 74 . . . . . . . . Core Remaining (%) 89 | 100 92 80 36 100 97 . 100 100 96 . Volleys Fired 98 | . 22 31 36 . . . . . 1 8 Largest 2 | . 2 2 2 . . . . . 1 1 Hottest 125 | . 100 70 125 . . . . . 7 65 Shots Fired 182 | . 44 62 67 . . . . . 1 8 Gun 176 | . 44 62 64 . . . . . . 6 Cannon 3 | . . . 3 . . . . . . . Launcher 2 | . . . . . . . . . . 2 Special 1 | . . . . . . . . . 1 . Kinetic 88 | . 3 52 33 . . . . . . . Thermal 91 | . 41 10 34 . . . . . . 6 Explosive 2 | . . . . . . . . . . 2 Electromagnetic . | . . . . . . . . . . . Robot Hit Streak 21 | . 10 21 9 . . . . . 5 9 Robot Miss Streak 5 | . 5 3 1 . . . . . . 1 Penetration Max . | . . . . . . . . . . . Secondary Targets 5 | . 1 1 3 . . . . . . . Max Gunslinging Chain 1 | . 1 1 1 . . . . . . . Shots Hit Robots 143 | . 25 43 65 . 1 . . . 1 8 Core Hits 76 | . 18 21 26 . . . . . . 11 Critical Kills 1 | . . 1 . . . . . . . . Critical Parts Destroyed 4 | . . 1 3 . . . . . . . Critical Strikes 10 | . 5 2 3 . . . . . . . Burn 5 | . 5 . . . . . . . . . Destroy 3 | . . 2 1 . . . . . . . Smash 2 | . . . 2 . . . . . . . Melee Attacks 86 | . . . 17 2 21 . 1 1 33 11 Impact 84 | . . . 17 1 20 . 1 1 33 11 Slashing . | . . . . . . . . . . . Piercing . | . . . . . . . . . . . Sneak Attacks 2 | . . . . . 1 . . . . 1 Combat Hostiles . | . . . . . . . . . . . Follow-up Attacks . | . . . . . . . . . . . Damage Inflicted 2811 | . 317 429 1315 . . . . . . 750 Guns 1698 | . 317 429 799 . . . . . . 153 Cannons 46 | . . . 46 . . . . . . . Explosions 470 | . . . . . . . . . . 470 Melee 580 | . . . 463 . . . . . . 117 Ramming 17 | . . . 7 . . . . . . 10 Kinetic 690 | . 10 365 315 . . . . . . . Thermal 1054 | . 307 64 530 . . . . . . 153 Explosive 470 | . . . . . . . . . . 470 Electromagnetic . | . . . . . . . . . . . Impact 580 | . . . 463 . . . . . . 117 Slashing . | . . . . . . . . . . . Piercing . | . . . . . . . . . . . Highest Corruption 4 | . . . . . 1 . . . . 4 Average Corruption 1 | . . . . . 1 . . . . 3 Corruption Purged . | . . . . . . . . . . . Corruption Blocked . | . . . . . . . . . . . Effects 1 | . . . . . . . . . . 1 Parts Rejected 1 | . . . . . . . . . . 1 Overload Shots . | . . . . . . . . . . . Overflow Damage 189 | . . . 87 . . . . . . 102 Projectiles . | . . . . . . . . . . . Explosions . | . . . . . . . . . . . Melee 189 | . . . 87 . . . . . . 102 Knockbacks 3 | . . . 3 . . . . . . . Impact 3 | . . . 3 . . . . . . . Kinetic . | . . . . . . . . . . . Secondary . | . . . . . . . . . . . Self-Inflicted Damage 119 | . . . . . . . . . . 119 Shots 2 | . . . . . . . . . . 2 Rammed 6 | . . . 2 . . . . . . 4 Targets Rammed 6 | . . . 2 . . . . . . 4 Kicked . | . . . . . . . . . . . Crushed . | . . . . . . . . . . . Highest Temperature 369 | . 369 53 188 . 365 167 . 204 198 199 Average Temperature 95 | . 115 19 58 . 126 83 . 42 55 140 Received Heat Transfer 1454 | . 90 177 1044 . 26 . . . 18 99 Effects 3 | . 1 . . . 2 . . . . . Shutdowns 3 | . 1 . . . 2 . . . . . Siege Activations . | . . . . . . . . . . . Robots Corrupted . | . . . . . . . . . . . Combat Hostiles . | . . . . . . . . . . . Parts Fried 1 | . . . . . . . . . . 1 Impact Corruptions 7 | . . . 6 . . . . . . 1 Robots Melted . | . . . . . . . . . . . Combat Hostiles . | . . . . . . . . . . . Parts Melted 6 | . 5 . 1 . . . . . . . Heat Transferred 2812 | . 1295 185 1147 . . . . . . 185 Parts Sabotaged . | . . . . . . . . . . . Parts Stolen . | . . . . . . . . . . . Parts Stripped . | . . . . . . . . . . . Power Chain Reactions . | . . . . . . . . . . . Alert | -11 -10 -9 -8 -7 -6 -5 -5 -4 -3 -2 ------- Run | Yrd Mat Mat Mat Fac Fac Fac DSF Fac Res Res Peak Influence 487 | . 147 280 332 137 339 180 143 76 416 487 Initial 234 | . . 55 26 121 66 165 126 74 39 234 Average 155 | . 88 166 150 130 106 169 130 74 191 348 Maximum Alert Level 2 | . . 1 1 . 1 . . . 2 2 Low Security (%) 72 | 100 100 63 78 100 83 100 100 100 59 . Level 1 25 | . . 36 21 . 16 . . . 36 77 Level 2 2 | . . . . . . . . . 4 22 Level 3 . | . . . . . . . . . . . Level 4 . | . . . . . . . . . . . Level 5 . | . . . . . . . . . . . High Security . | . . . . . . . . . . . Max Security . | . . . . . . . . . . . Squads Dispatched 14 | . . 1 1 . . . . . 2 10 Investigation 1 | . . 1 . . . . . . . . Extermination . | . . . . . . . . . . . Reinforcement 9 | . . . 1 . . . . . 2 6 Assault 1 | . . . . . . . . . . 1 Garrison 3 | . . . . . . . . . . 3 Intercept . | . . . . . . . . . . . Searches Triggered 1 | . . . . . . . . . . 1 Construction Impeded . | . . . . . . . . . . . Haulers Reinforced . | . . . . . . . . . . . Active Scanning Responses . | . . . . . . . . . . . Cargo Convoy Interrupts . | . . . . . . . . . . . Stealth | -11 -10 -9 -8 -7 -6 -5 -5 -4 -3 -2 --------- Run | Yrd Mat Mat Mat Fac Fac Fac DSF Fac Res Res Distress Signals 2 | . 1 1 . . . . . . . . Communications Jammed 9 | . . . . . . . . . 9 . Distress Signals 9 | . . . . . . . . . 9 . Times Spotted 134 | . 15 15 25 . 14 . 2 1 17 45 Peak Tracking Total 16 | . 5 4 11 . 8 . 2 1 7 16 Tactical Retreats 22 | . 1 . 4 . 5 . 1 . 6 5 Traps | -11 -10 -9 -8 -7 -6 -5 -5 -4 -3 -2 ------- Run | Yrd Mat Mat Mat Fac Fac Fac DSF Fac Res Res Traps Triggered 5 | . . 1 . . 2 . 1 . . 1 Indirectly . | . . . . . . . . . . . Trap Hack Attempts . | . . . . . . . . . . . Triggered . | . . . . . . . . . . . Disarmed . | . . . . . . . . . . . Reprogrammed . | . . . . . . . . . . . Reused . | . . . . . . . . . . . Traps Extracted . | . . . . . . . . . . . Installed . | . . . . . . . . . . . Triggered . | . . . . . . . . . . . Machines | -11 -10 -9 -8 -7 -6 -5 -5 -4 -3 -2 ---------- Run | Yrd Mat Mat Mat Fac Fac Fac DSF Fac Res Res Machines Disabled 1 | . . . 1 . . . . . . . Max in Single Turn 1 | . . . 1 . . . . . . . Garrison Access 1 | . . . . . . . . . . 1 Machines Repaired . | . . . . . . . . . . . Machines Dismantled . | . . . . . . . . . . . Machines Sabotaged . | . . . . . . . . . . . Overloaded Fab Kills . | . . . . . . . . . . . Hacking | -11 -10 -9 -8 -7 -6 -5 -5 -4 -3 -2 --------- Run | Yrd Mat Mat Mat Fac Fac Fac DSF Fac Res Res Machines Accessed 13 | . 1 2 1 1 4 1 . 1 1 1 Terminals 10 | . 1 . 1 1 3 1 . 1 1 1 Fabricators 1 | . . . . . 1 . . . . . Repair Stations 1 | . . 1 . . . . . . . . Recycling Units . | . . . . . . . . . . . Scanalyzers 1 | . . 1 . . . . . . . . Garrison Access . | . . . . . . . . . . . Total Hacks 25 | . 2 7 1 1 5 1 . 3 3 2 Successful 14 | . 1 6 1 . 2 1 . 1 1 1 Failed 11 | . 1 1 . 1 3 . . 2 2 1 Catastrophic 3 | . . . . 1 . . . . 1 1 Database Lockouts . | . . . . . . . . . . . Manual 12 | . . . . 1 3 . . 3 3 2 Terminals 17 | . 2 . 1 1 4 1 . 3 3 2 Fabricators 1 | . . . . . 1 . . . . . Repair Stations 5 | . . 5 . . . . . . . . Recycling Units . | . . . . . . . . . . . Scanalyzers 2 | . . 2 . . . . . . . . Garrison Access . | . . . . . . . . . . . Terminal Hacks 8 | . 1 . 1 . 2 1 . 1 1 1 Record 1 | . . . . . 1 . . . . . Prototype ID Bank 1 | . . . 1 . . . . . . . Open DSF 1 | . . . . . . 1 . . . . Alert Level 1 | . . . . . . . . . 1 . Hauler Manifests 1 | . 1 . . . . . . . . . Registered Components 2 | . . . . . 1 . . 1 . . Zone Layout 1 | . . . . . . . . . . 1 Fabricator Hacks . | . . . . . . . . . . . Repair Station Hacks 4 | . . 4 . . . . . . . . Scan Component 2 | . . 2 . . . . . . . . Repair 2 | . . 2 . . . . . . . . Recycling Unit Hacks . | . . . . . . . . . . . Scanalyzer 2 | . . 2 . . . . . . . . Insert Component 1 | . . 1 . . . . . . . . Analyze 1 | . . 1 . . . . . . . . Garrison Access Hacks . | . . . . . . . . . . . Unauthorized Hacks . | . . . . . . . . . . . Terminals . | . . . . . . . . . . . Fabricators . | . . . . . . . . . . . Repair Stations . | . . . . . . . . . . . Recycling Units . | . . . . . . . . . . . Scanalyzers . | . . . . . . . . . . . Garrison Access . | . . . . . . . . . . . Data Cores Recovered . | . . . . . . . . . . . Used . | . . . . . . . . . . . Hacking Detections 10 | . 1 2 . 1 4 . . . 1 1 Full Trace Events . | . . . . . . . . . . . Feedback Events . | . . . . . . . . . . . Feedback Blocked . | . . . . . . . . . . . Robot Schematics Acquired . | . . . . . . . . . . . Robots Built . | . . . . . . . . . . . Authchips . | . . . . . . . . . . . Time . | . . . . . . . . . . . Total Robot Build Rating . | . . . . . . . . . . . Part Schematics Acquired 1 | . . 1 . . . . . . . . Parts Built . | . . . . . . . . . . . Authchips . | . . . . . . . . . . . Time . | . . . . . . . . . . . Total Part Build Rating . | . . . . . . . . . . . Parts Repaired 2 | . . 2 . . . . . . . . Time 58 | . . 58 . . . . . . . . Parts Recycled . | . . . . . . . . . . . Recycled Matter . | . . . . . . . . . . . Retrieved Matter . | . . . . . . . . . . . Retrieved Components . | . . . . . . . . . . . Parts Scanalyzed 1 | . . 1 . . . . . . . . Part Schematics Acquired 1 | . . 1 . . . . . . . . Parts Damaged . | . . . . . . . . . . . Bothacking | -11 -10 -9 -8 -7 -6 -5 -5 -4 -3 -2 ------------ Run | Yrd Mat Mat Mat Fac Fac Fac DSF Fac Res Res Used RIF Installer . | . . . . . . . . . . . Robots Hacked 2 | . . . . . 1 . . . 1 . Non-combat 2 | . . . . . 1 . . . 1 . Combat . | . . . . . . . . . . . Robot Hacks Applied 2 | . . . . . 1 . . . 1 . parse_system 2 | . . . . . 1 . . . 1 . Relay Couplers Released 3 | . . . . . . . . . . 3 Machine Destruction 3 | . . . . . . . . . . 3 Fabnet Peak Effective % . | . . . . . . . . . . . Robots Rewired . | . . . . . . . . . . . Allies Hacked . | . . . . . . . . . . . Hacks Repelled . | . . . . . . . . . . . Allies | -11 -10 -9 -8 -7 -6 -5 -5 -4 -3 -2 -------- Run | Yrd Mat Mat Mat Fac Fac Fac DSF Fac Res Res Total Allies 3 | . . . . . . . . . . 3 Largest Group 3 | . . . . . . . . . . 3 Highest-Rated Group 138 | . . . . . . . . . . 138 Highest-Rated Ally 46 | . . . . . . . . . . 46 Total Orders . | . . . . . . . . . . . Ally Attacks 17 | . . . . . . . . . . 17 Total Damage 408 | . . . . . . . . . . 408 Kills 3 | . . . . . . . . . . 3 Allies Corrupted . | . . . . . . . . . . . Allies Melted . | . . . . . . . . . . . Intel | -11 -10 -9 -8 -7 -6 -5 -5 -4 -3 -2 ------- Run | Yrd Mat Mat Mat Fac Fac Fac DSF Fac Res Res Robot Analysis Total . | . . . . . . . . . . . Derelict Logs Recovered . | . . . . . . . . . . . Drone Launches . | . . . . . . . . . . . Drone Recoveries . | . . . . . . . . . . . Exploration | -11 -10 -9 -8 -7 -6 -5 -5 -4 -3 -2 ------------- Run | Yrd Mat Mat Mat Fac Fac Fac DSF Fac Res Res Turns Passed 3383 | 85 615 817 684 93 294 20 32 79 365 299 Spaces Moved 4199 | 47 314 344 409 282 840 75 91 257 845 695 Core 61 | 6 . . 29 . . . . . . 26 Treads 875 | 41 314 344 176 . . . . . . . Legs . | . . . . . . . . . . . Wheels . | . . . . . . . . . . . Hover . | . . . . . . . . . . . Flight 3263 | . . . 204 282 840 75 91 257 845 669 Fastest Speed 19 | 50 160 145 34 27 24 22 22 19 19 22 Average Speed 56 | 145 160 157 113 27 24 22 22 23 26 28 Slowest Speed 500 | 160 160 160 500 27 27 22 22 25 31 50 Overloaded Moves . | . . . . . . . . . . . Propulsion Burnouts . | . . . . . . . . . . . Robots Hopped 26 | . . . 1 . . . . . 11 14 Cave-ins Triggered . | . . . . . . . . . . . Exploration Rate (%) 27 | 4 43 36 30 8 24 3 84 7 33 31 Regions Visited 10 Branch Regions . Pre-discovered Areas . | . . . . . . . . . . . Known Exits Taken 7 | . 1 1 . 1 1 1 . 1 1 . Unknown Exits Taken 2 | 1 . . 1 . . . . . . . Scrap Searched . | . . . . . . . . . . . Spaces Dug 62 | . . . . 1 19 . 1 1 32 8 Terrain Destroyed 72 | . . . 1 1 19 . 1 1 32 17 Melee 62 | . . . . 1 19 . 1 1 32 8 Projectile 1 | . . . 1 . . . . . . . AOE 9 | . . . . . . . . . . 9 Terrain Rammed . | . . . . . . . . . . . Walls Destroyed . | . . . . . . . . . . . Machines Disabled . | . . . . . . . . . . . Actions | -11 -10 -9 -8 -7 -6 -5 -5 -4 -3 -2 --------- Run | Yrd Mat Mat Mat Fac Fac Fac DSF Fac Res Res Total 4852 | 62 383 571 531 297 885 77 101 273 915 757 Wait 251 | 1 24 155 20 2 15 . . 9 16 9 Move 4140 | 46 313 343 406 281 839 74 90 256 823 669 Hop 23 | . . . 1 . . . . . 10 12 Pick Up 66 | 9 11 7 13 4 1 . 5 3 6 7 Fast Attach 32 | 3 3 3 3 2 3 . 1 1 8 5 Attach 42 | 3 1 4 15 2 2 2 . 1 3 9 Detach 10 | . 1 1 2 . 1 . . . 1 4 Swap 29 | . 3 12 4 . . 1 . . 1 8 Drop 69 | . 5 15 12 4 3 . 4 2 13 11 Fire 98 | . 22 31 36 . . . . . 1 8 Melee 86 | . . . 17 2 21 . 1 1 33 11 Ram 4 | . . . . . . . . . . 4 Kick . | . . . . . . . . . . . Crush 2 | . . . 2 . . . . . . . Escape Stasis . | . . . . . . . . . . . Rewire . | . . . . . . . . . . . Trap . | . . . . . . . . . . . Miscellaneous . | . . . . . . . . . . . Route ------- -11/Scrapyard -10/Materials (discovered 3 exits: *Mat / *Min x2) -9/Materials (discovered 4 exits: *Mat / [*Min] / *Sto x2) -8/Materials -7/Factory -6/Factory -5/Factory -5/DSF -4/Factory -3/Research -2/Research History --------- Turn | Location | Event 7 | -11/Scrapyard | Discovered new exit (range 15) 86 | -11/Scrapyard | Entered Materials 314 | -10/Materials | Build established: Mutant 315 | -10/Materials | Discovered new exit (range 3) 405 | -10/Materials | Discovered new exit (range 13) 490 | -10/Materials | Discovered new exit (range 13) 601 | -10/Materials | Identified exit to Mines 699 | -10/Materials | Identified exit to Materials 701 | -10/Materials | Entered another Materials area 701 | -9/Materials | Evolved 2 slots: Utility x2 718 | -9/Materials | Discovered new exit (range 15) 780 | -9/Materials | Discovered new exit (range 13) 850 | -9/Materials | Identified exit to Storage 1306 | -9/Materials | Repaired Lgt. Assault Rifle 1340 | -9/Materials | Repaired Imp. Ion Engine 1376 | -9/Materials | Discovered new exit (range 13) 1425 | -9/Materials | Build established: Scavenger-Mutant 1489 | -9/Materials | Discovered new exit (range 15) 1517 | -9/Materials | Identified exit to Materials 1518 | -9/Materials | Entered another Materials area 1518 | -8/Materials | Evolved 2 slots: Propulsion x1, Utility x1 1740 | -8/Materials | Build established: Mutant 1930 | -8/Materials | Core integrity fell below 50% 1934 | -8/Materials | Lost 7 parts (1p3n1u2w) 2193 | -8/Materials | Discovered new exit (range 14) 2202 | -8/Materials | Entered Factory 2202 | -7/Factory | Evolved 2 slots: Propulsion x2 2293 | -7/Factory | Discovered new exit (range 7) 2295 | -7/Factory | Identified exit to Factory 2295 | -7/Factory | Entered another Factory area 2295 | -6/Factory | Evolved 2 slots: Power x1, Propulsion x1 2588 | -6/Factory | Discovered new exit (range 6) 2589 | -6/Factory | Identified exit to Factory 2589 | -6/Factory | Entered another Factory area 2589 | -5/Factory | Evolved 2 slots: Propulsion x1, Utility x1 2607 | -5/Factory | Identified exit to DSF 2609 | -5/Factory | Entered DSF 2633 | -5/DSF | Additional patrols routed to DSF 2636 | -5/DSF | Discovered new exit (range 20) 2641 | -5/DSF | Identified exit to Factory 2641 | -5/DSF | Entered Factory 2641 | -4/Factory | Evolved 2 slots: Propulsion x1, Utility x1 2643 | -4/Factory | Discovered new exit (range 3) 2644 | -4/Factory | Identified exit to Research 2720 | -4/Factory | Entered Research 2720 | -3/Research | Evolved 2 slots: Power x1, Utility x1 2873 | -3/Research | Spotted B-86 Titan 3055 | -3/Research | Spotted B-86 Titan 3059 | -3/Research | Spotted B-86 Titan 3076 | -3/Research | Discovered new exit (range 9) 3083 | -3/Research | Identified exit to Research 3085 | -3/Research | Entered another Research area 3085 | -2/Research | Evolved 2 slots: Propulsion x1, Utility x1 3103 | -2/Research | Spotted B-90 Cyclops 3105 | -2/Research | Spotted B-90 Cyclops 3132 | -2/Research | Allied Derelicts emerged from ambush trap array 3142 | -2/Research | Garrison activated, responded to threat 3306 | -2/Research | Spotted B-90 Cyclops 3335 | -2/Research | Search patrols dispatched 3370 | -2/Research | Core integrity fell below 50% 3374 | -2/Research | Core integrity fell below 20% 3384 | -2/Research | Destroyed by G-73 Enforcer with Phase Gun Last Messages --------------- Slug penetrates Wall. Imp. Flight Unit destroyed. Slammed into S-43 Plague. Destabilizing: System interference. Adv. Visual Processing Unit temporarily disabled. Penetrated by Slug. K-01 Serf destroyed. Slammed into S-43 Plague. Destabilizing: System corrupted (+1). Adv. Visual Processing Unit severed. Slammed into S-43 Plague. Penetrated by Slug. K-01 Serf collects debris. Penetrated by Slug. K-01 Serf collects debris. Slug penetrates Wall. Acquired 94 matter. Slammed into A-15 Conveyor. Acquired 8 matter. Acquired 14 matter. Map ----- +----------------------------------------------------+ | ???????????# ! # ! # | | ???????????#![! ! # ##### | | ??##########![! # | | ??# ##[[! # ########## | | ### ############## ##########= % | | """ #??# """ # # / | | """ #??#* ""T"" *# # ######+####"# | | """ #??# "" "" # # # | | "S #### # # ! "! | | "" / + # # H # ! | | "" # ## + + # | | ### # ## # ######"###"""" | | ??# # ## # ## #"""" | | ??# ! # ############ ## #"""" ! | | ?########+# ##????????# # #"""" | | ?# ########## u # #"""" | | ?# # """ # | | # / """ # | | / ########## # """ # | | # ########????????# c # """ ############# | | ?# #?#### #????????###s#### """ #???????????? | | ?# #? #??????????#s#??# #???????????? | | ?# #?? ############/#??# #???????????? | | # #?? # A #??#########???????????? | | # # %] !# % #??????????????????????? | | + + ]] # @#??????????????????????? | | # # # #??????????????????????? | | # #?? # uk #??????????????????????? | | ?# ######+# p??????????????????????? | | ?# # #??????????????????????? | | ?# =#g #??????????????????????? | | ?# %/A #??????????????????????? | | ## ! # g #??????????????????????? | | "" # #??????????????????????? | | "" ! # #??????????????????????? | | T !! ################????????????????????? | | "" ! ???????????????????? | | "" ???????????????????? | | ## ???????????????????? | | ?# " ???????????????????? | | ?####"###"###### T ##????????????????????? | | ?# #????? " #?????????????????????? | | ?# #?????? ??????????????????????? | | ?# #?????? ???????????????????????? | | ?# #??????? ????????????????????????? | | ?# #???????? ???????????????????????? | | ?# #???????? ! ???????????????????????? | | ?# #????????? ???????????????????????? | | ?# #??????????" ????????????????????????? | | ?# #??????????????????????????????????????? | +----------------------------------------------------+ Best States ------------- Heat Dissipation 49 Coolant Potential 100 Energy Generation 59 Energy Capacity 490 Matter Stores 300 Matter Capacity 300 Sight Range 20 Robot Scan Range 15 Terrain Scan Density 110 ECM Strength 2 Jamming Range 16 Cloak Strength 3 Armor Coverage 150 Propulsion Shielding 66 Evasion (%) 66 Recoil Reduction 3 Offensive Hacking 20 Defensive Hacking 10 Item Schematics ----------------- Flight Unit | -9/Materials | Scanalyzed Robot Schematics ------------------ None Fabricated ------------ Nothing Alien Tech Used ----------------- None Achievements -------------- None Challenges ------------ None Game ------ Seed StorageArchitectWeb Manual? 0 Play Time 01:21:24 Cumulative 17.0 hours Start 2024.04.20 @ 20:14:34 End 2024.04.20 @ 21:36:58 Sessions 1 Manual Loads 0 Difficulty Rogue Special Mode None Game No. 25 Rogue 25 Adventurer 0 Explorer 0 Win Type - Total 0 Types 0/0/0/0/0/0/0/0/0 Lore% 22 Gallery% 27 Achievement% 21 Wizard Run 0 Options --------- Layout 0 ASCII 0 Keyboard 0 Movement Numpad Keybinds 0 Fullscreen 2 Font 24/Smallcaps Map View 76x50 Zoom Use 0% Tactical HUD 0 Map Filters NONE Filters NONE Steam 1 RUN: af1ac238-3748-485c-af0d-d9a39619dc12